bitfinex/quotes_ETHUSD_20220101
["timestamp","ask_amount","ask_price","bid_price","bid_amount"]
[1641026541433,0.00397896,3722.6,3722.5,3.51142827]
[1641026541633,0.00682108,3723.1,3722.5,1.3]
[1641026541837,0.00397896,3722.6,3722.5,1.3]
[1641026542034,0.00625265,3723.0,3722.5,1.3]
[1641026542235,0.00397896,3722.6,3722.5,1.3]
[1641026542437,0.00568423,3722.9,3722.5,0.3]
[1641026542635,0.00397896,3722.6,3722.5,1.3]
[1641026542876,0.0073895,3723.2,3722.5,0.6]
[1641026543081,0.00397896,3722.6,3722.5,1.0]
[1641026543274,0.00682108,3723.1,3722.4,1.3]
[1641026543475,0.00397896,3722.6,3722.4,1.3]
[1641026543675,0.00625265,3723.0,3722.4,1.3]
[1641026543875,2.84702053,3723.3,3722.4,1.3]
[1641026543876,0.00341054,3722.5,3722.4,1.3]
[1641026544075,0.00568423,3722.9,3722.4,0.3]
[1641026544282,0.00341054,3722.5,3722.4,1.3]
[1641026544481,0.0073895,3723.2,3722.4,1.3]
[1641026544681,0.00341054,3722.5,3722.4,0.3]
[1641026544882,0.00682108,3723.1,3722.2,1.33927011]
[1641026545082,0.00341054,3722.5,3722.2,1.33927011]
[1641026545281,0.00625265,3723.0,3722.2,1.33927011]
[1641026545485,0.00284211,3722.4,3722.2,1.33927011]
[1641026545684,0.00568423,3722.9,3722.2,1.33927011]
[1641026545882,0.00227369,3722.3,3722.0,0.06971543]
[1641026546081,0.00625265,3723.0,3722.0,0.06971543]
[1641026546283,0.00170527,3722.2,3722.0,0.06971543]
[1641026546485,0.00568423,3722.9,3722.0,0.06971543]
[1641026546726,0.00113684,3722.1,3722.0,0.06971543]
[1641026546927,0.00625265,3723.0,3722.0,0.06971543]
[1641026547128,0.00113684,3722.1,3722.0,0.06971543]
[1641026547328,0.00568423,3722.9,3721.8,0.0625]
[1641026547527,0.00113684,3722.1,3721.8,0.0625]
[1641026547728,0.0073895,3723.2,3721.8,0.0625]
[1641026547929,0.0073895,3723.2,3721.7,2.01102011]
[1641026548131,0.00682108,3723.1,3721.7,2.01102011]
[1641026548326,0.00682108,3723.1,3721.7,2.31102011]
[1641026548528,0.00625265,3723.0,3721.7,2.61102011]
[1641026548730,0.00625265,3723.0,3721.7,2.01102011]
[1641026548929,0.408076,3723.3,3721.8,1.0]
[1641026548930,0.00568423,3722.9,3721.8,1.0]
[1641026549130,0.00568423,3722.9,3721.7,2.01102011]
[1641026549335,1.17179,3723.1,3721.7,2.01102011]
[1641026549533,1.17179,3723.1,3721.7,0.67175]
[1641026549732,0.00625265,3723.0,3721.7,0.67175]
[1641026550135,0.00568423,3722.9,3721.7,0.67175]
[1641026550676,0.00625265,3723.0,3721.7,0.67175]
[1641026551077,0.00568423,3722.9,3721.7,0.67175]
[1641026551480,0.00625265,3723.0,3721.7,0.67175]
[1641026551880,0.00568423,3722.9,3721.7,0.67175]
[1641026552280,1.17179,3723.1,3721.7,0.67175]
[1641026552281,0.00625265,3723.0,3721.7,0.67175]
[1641026552682,0.00568423,3722.9,3721.7,0.67175]
[1641026553080,0.00625265,3723.0,3721.7,2.01102011]
[1641026553482,0.00568423,3722.9,3721.7,2.01102011]
[1641026553882,1.02404135,3722.2,3721.7,0.67175]
[1641026554324,3.20285265,3723.0,3721.7,0.97175]
[1641026554325,0.00113684,3722.1,3721.7,0.97175]
[1641026554532,0.00113684,3722.1,3721.7,1.97175]
[1641026554725,0.00568423,3722.9,3721.9,0.67174]
[1641026555025,0.5073895,3723.2,3721.9,0.67174]
[1641026555226,0.82521174,3722.4,3721.9,0.67174]
[1641026555425,0.00682108,3723.1,3721.9,0.67174]
[1641026555626,3.746776,3723.3,3721.9,0.3]
[1641026555627,0.00227369,3722.3,3721.9,0.3]
[1641026555828,0.00625265,3723.0,3722.1,0.67167]
[1641026556024,0.00170527,3722.2,3722.1,0.97167]
[1641026556225,0.00568423,3722.9,3722.1,0.97167]
[1641026556525,3.746776,3723.3,3722.1,0.3]
[1641026556526,0.96164414,3723.1,3722.1,0.3]
[1641026556927,0.00625265,3723.0,3722.2,0.67168]
[1641026557327,0.00568423,3722.9,3722.2,0.67168]
[1641026557726,0.00625265,3723.0,3722.2,0.97168]
[1641026557975,0.00625265,3723.0,3722.2,1.27168]
[1641026558172,0.00568423,3722.9,3722.2,1.27168]
[1641026558574,0.00625265,3723.0,3722.2,1.27168]
[1641026558972,0.00568423,3722.9,3722.2,1.27168]
[1641026559375,0.00625265,3723.0,3722.2,1.27168]
[1641026559776,0.00568423,3722.9,3722.2,1.27168]
[1641026560077,0.00625265,3723.0,3722.2,1.27168]
[1641026560476,0.00568423,3722.9,3722.2,1.27168]
[1641026560678,0.00568423,3722.9,3722.2,2.27168]
[1641026560879,0.00625265,3723.0,3722.2,2.27168]
[1641026561276,0.00568423,3722.9,3722.2,2.27168]
[1641026561634,0.0073895,3723.2,3722.2,2.27168]
[1641026562035,0.00682108,3723.1,3722.2,3.61095011]
[1641026562237,0.00682108,3723.1,3722.2,2.61095011]
[1641026562436,0.00625265,3723.0,3722.3,1.0]
[1641026562837,0.00568423,3722.9,3722.3,1.0]
[1641026563237,0.0073895,3723.2,3722.3,1.0]
[1641026563637,0.00682108,3723.1,3722.3,1.0]
[1641026564042,0.00625265,3723.0,3722.2,2.27168]
[1641026564242,0.00625265,3723.0,3722.2,1.27168]
[1641026564442,0.00568423,3722.9,3722.2,2.27168]
[1641026564842,0.0073895,3723.2,3722.2,2.27168]
[1641026565242,0.00682108,3723.1,3722.4,0.67166]
[1641026565674,0.00625265,3723.0,3722.4,0.67166]
[1641026566076,0.00568423,3722.9,3722.4,3.01093011]
[1641026566273,0.00568423,3722.9,3722.4,2.01093011]
[1641026566471,0.0073895,3723.2,3722.4,2.01093011]
[1641026566672,0.0073895,3723.2,3722.4,1.33927011]
[1641026566872,0.00682108,3723.1,3722.5,1.33927011]
[1641026567272,0.00625265,3723.0,3722.3,1.0]
[1641026567477,0.00625265,3723.0,3722.2,2.33927011]
[1641026567674,0.00568423,3722.9,3722.2,1.33927011]
[1641026568075,2.31826687,3723.2,3722.2,1.33927011]
[1641026568275,2.31826687,3723.2,3722.3,1.33927011]
[1641026568473,0.00682108,3723.1,3722.3,1.33927011]
[1641026568875,2.31087737,3723.2,3722.2,1.33927011]
[1641026568876,0.00625265,3723.0,3722.2,1.33927011]
[1641026569344,0.00568423,3722.9,3721.9,1.33927011]
[1641026569742,2.28050018,3723.2,3721.9,1.33927011]
[1641026570044,0.00682108,3723.1,3721.9,1.33927011]
[1641026570242,0.00682108,3723.1,3722.1,1.33927011]
[1641026570444,0.00625265,3723.0,3722.1,1.33927011]
[1641026570743,2.27311068,3723.2,3721.6,1.94348]
[1641026570744,0.00568423,3722.9,3722.2,1.33927011]
[1641026571143,0.00682108,3723.1,3722.2,1.93927011]
[1641026571542,2.27311068,3723.2,3722.2,1.93927011]
[1641026571543,0.00625265,3723.0,3722.2,1.93927011]
[1641026571943,2.27311068,3723.2,3722.2,1.93927011]
[1641026571944,0.00568423,3722.9,3722.2,1.93927011]
[1641026572142,0.00568423,3722.9,3722.4,1.33927011]
[1641026572342,2.27311068,3723.2,3722.4,1.33927011]
[1641026572343,0.00682108,3723.1,3722.4,1.33927011]
[1641026572744,0.00625265,3723.0,3722.3,2.01095011]
[1641026573180,0.00568423,3722.9,3722.3,3.01095011]
[1641026573374,0.00568423,3722.9,3722.3,2.01095011]
[1641026573574,0.00682108,3723.1,3722.4,2.33927011]
[1641026573774,0.00682108,3723.1,3722.4,1.33927011]
[1641026573978,0.00625265,3723.0,3722.4,2.33927011]
[1641026574378,0.00568423,3722.9,3722.4,2.33927011]
[1641026574678,0.00682108,3723.1,3722.4,1.33927011]
[1641026574877,0.00682108,3723.1,3722.3,0.67168]
[1641026575078,0.00625265,3723.0,3722.3,0.67168]
[1641026575478,0.00568423,3722.9,3722.3,0.67168]
[1641026575880,2.27311068,3723.2,3722.3,0.67168]
[1641026575881,0.00682108,3723.1,3722.3,0.67168]
[1641026576281,0.00625265,3723.0,3722.3,0.67168]
[1641026576631,2.27311068,3723.2,3722.3,0.67168]
[1641026576632,0.00568423,3722.9,3722.3,0.67168]
[1641026577029,0.00682108,3723.1,3722.3,0.67168]
[1641026577430,2.27311068,3723.2,3722.2,1.33927011]
[1641026577431,0.00625265,3723.0,3722.2,1.33927011]
[1641026577830,0.00568423,3722.9,3722.2,1.33927011]
[1641026578330,0.00682108,3723.1,3722.2,1.33927011]
[1641026578732,0.00625265,3723.0,3722.2,1.33927011]
[1641026579134,0.00568423,3722.9,3722.1,1.33927011]
[1641026579535,0.00682108,3723.1,3722.1,1.33927011]
[1641026579736,0.00682108,3723.1,3722.0,2.33927011]
[1641026579936,0.00625265,3723.0,3722.0,1.33927011]
[1641026580136,0.00625265,3723.0,3722.0,2.33927011]
[1641026580371,0.00568423,3722.9,3722.0,2.33927011]
[1641026580576,0.00568423,3722.9,3722.0,1.33927011]
[1641026580774,2.94487068,3723.2,3722.0,1.33927011]
[1641026580775,0.00682108,3723.1,3722.0,1.33927011]
[1641026581173,0.00625265,3723.0,3722.0,1.33927011]
[1641026581571,0.00568423,3722.9,3722.0,1.33927011]
[1641026582072,0.00682108,3723.1,3722.0,1.33927011]
[1641026582473,0.00625265,3723.0,3722.0,1.33927011]
[1641026582772,0.00568423,3722.9,3722.0,1.33927011]
[1641026583173,0.00682108,3723.1,3722.0,1.33927011]
[1641026583373,0.67176,3723.0,3722.0,1.33927011]
[1641026583574,0.67801265,3723.0,3722.0,1.33927011]
[1641026583775,0.67801265,3723.0,3722.1,1.33927011]
[1641026583776,2.0426894,3722.9,3722.1,1.33927011]
[1641026584436,2.0426894,3722.9,3722.0,1.33927011]
[1641026584635,0.00568423,3722.9,3722.0,1.33927011]
[1641026584835,2.02902094,3722.9,3722.0,1.33927011]
[1641026585238,2.02902094,3722.9,3721.9,1.33927011]
[1641026585837,2.02902094,3722.9,3721.8,2.39867011]
[1641026586036,2.02902094,3722.9,3721.8,1.69867011]
[1641026586636,2.02902094,3722.9,3721.8,0.3594]
[1641026586837,2.02902094,3722.9,3721.8,0.0594]
[1641026587438,0.00568423,3722.9,3721.8,1.39867011]
[1641026587640,2.02063764,3722.9,3721.8,1.39867011]
[1641026587874,2.05463541,3722.9,3721.8,0.0594]
[1641026588074,0.00568423,3722.9,3721.8,0.0594]
[1641026588278,2.01741193,3722.9,3721.8,0.73116]
[1641026588475,0.00568423,3722.9,3721.8,0.73116]
[1641026588875,0.00568423,3722.9,3721.8,2.07043011]
[1641026589075,0.00568423,3722.9,3721.8,3.07043011]
[1641026589485,1.11415962,3723.3,3722.4,0.01226881]
[1641026589486,0.074876,3723.3,3722.4,0.01226881]
[1641026589684,0.074876,3723.3,3722.4,0.98906881]
[1641026589879,0.00113685,3723.1,3722.4,0.98906881]
[1641026590083,0.00113685,3723.1,3722.8,0.67146]
[1641026590479,0.00113685,3723.1,3722.9,0.90752759]
[1641026591079,0.00113685,3723.1,3723.0,0.67146]
[1641026591280,0.00113685,3723.1,3723.0,0.97146]
[1641026591481,0.00113685,3723.1,3723.0,2.27146]
[1641026591724,0.00113685,3723.1,3723.0,4.51429667]
[1641026592125,0.00113685,3723.1,3723.0,2.27146]
[1641026592327,0.00113685,3723.1,3723.0,4.52244172]
[1641026592624,0.00113685,3723.1,3723.0,4.50565584]
[1641026592823,0.00113685,3723.1,3723.0,2.27146]
[1641026595129,0.00113685,3723.1,3723.0,4.51263816]
[1641026596887,0.074876,3723.3,3723.2,15.73]
[1641026597086,0.074876,3723.3,3723.2,17.3374]
[1641026597286,0.07601285,3723.3,3723.2,17.3374]
[1641026598286,0.07601285,3723.3,3723.2,20.0695018]
[1641026598487,0.07601285,3723.3,3723.2,23.5695018]
[1641026598687,0.07601285,3723.3,3723.2,20.0695018]
[1641026598887,0.07601285,3723.3,3723.2,17.3374]
[1641026599126,0.07601285,3723.3,3723.2,1.6074]
[1641026599330,0.07601285,3723.3,3723.2,3.25609454]
[1641026599730,0.07601285,3723.3,3723.2,5.98819634]
[1641026600140,0.07601285,3723.3,3723.2,3.25609454]
[1641026601934,0.07601285,3723.3,3723.2,1.0]
[1641026603174,0.07601285,3723.3,3723.1,2.46059964]
[1641026603776,0.07601285,3723.3,3723.1,2.01369106]
[1641026604480,0.07601285,3723.3,3723.1,2.31369106]
[1641026604678,0.07601285,3723.3,3723.1,3.31369106]
[1641026605682,0.07601285,3723.3,3723.1,1.34239756]
[1641026606182,0.07601285,3723.3,3722.9,4.52140794]
[1641026606381,0.07601285,3723.3,3722.9,2.7321018]
[1641026606623,0.84601838,3723.2,3722.9,2.7321018]
[1641026607029,0.84601838,3723.2,3722.8,0.06971384]
[1641026607226,0.84601838,3723.2,3722.6,0.6716]
[1641026607426,0.84601838,3723.2,3722.9,0.00113685]
[1641026607626,0.84601838,3723.2,3722.7,0.0022737]
[1641026607829,1.87622243,3723.1,3722.5,0.00341054]
[1641026608027,0.84601838,3723.2,3722.4,0.00397897]
[1641026610680,0.84601838,3723.2,3722.5,0.67161]
[1641026611080,0.84601838,3723.2,3722.6,0.00284212]
[1641026612080,0.84601838,3723.2,3722.8,0.6716]
[1641026612283,0.07601285,3723.3,3722.8,0.6716]
[1641026612484,0.07601285,3723.3,3722.9,0.00113685]
[1641026612883,0.07601285,3723.3,3722.7,0.0022737]
[1641026613084,0.07601285,3723.3,3722.7,0.6738114]
[1641026613283,0.07601285,3723.3,3723.0,0.67156]
[1641026615037,0.07601285,3723.3,3723.0,1.67156]
[1641026615335,0.07601285,3723.3,3723.0,0.67156]
[1641026615536,0.07601285,3723.3,3723.0,1.67156]
[1641026617537,0.07601285,3723.3,3723.0,0.67156]
[1641026617738,0.07601285,3723.3,3723.0,1.67156]
[1641026618188,0.07601285,3723.3,3722.9,1.0]
[1641026618391,0.07601285,3723.3,3722.8,0.67331527]
[1641026618888,0.07601285,3723.3,3722.9,0.00113685]
[1641026619690,0.07601285,3723.3,3722.6,0.00284212]
[1641026622327,0.07601285,3723.3,3722.7,0.67163]
[1641026622729,0.07601285,3723.3,3722.8,0.00170527]
[1641026623329,0.07601285,3723.3,3722.9,0.67159]
[1641026627180,0.074876,3723.3,3722.9,0.67159]
[1641026634386,0.074876,3723.3,3722.7,0.67163]
[1641026634787,0.074876,3723.3,3722.8,0.00170527]
[1641026635386,0.074876,3723.3,3722.9,0.67159]
[1641026638339,0.074876,3723.3,3722.7,0.6739037]
[1641026638536,0.074876,3723.3,3722.7,0.0022737]
[1641026638737,0.074876,3723.3,3722.8,0.00170527]
[1641026638935,0.074876,3723.3,3722.7,0.0022737]
[1641026640592,0.746626,3723.3,3722.2,0.00511581]
[1641026640788,2.12704376,3723.2,3722.2,0.00511581]
[1641026640990,0.746626,3723.3,3722.2,0.00511581]
[1641026642191,0.074876,3723.3,3722.3,0.67171]
[1641026642490,0.074876,3723.3,3722.4,0.00397897]
[1641026644641,2.21941948,3723.3,3722.4,0.00397897]
[1641026644840,0.074876,3723.3,3722.4,0.00397897]
[1641026645739,0.074876,3723.3,3722.4,0.67566897]
[1641026646241,0.074876,3723.3,3722.5,0.00341054]
[1641026649584,0.074876,3723.3,3722.5,0.67508054]
[1641026649784,0.074876,3723.3,3722.5,0.67167]
[1641026649986,0.074876,3723.3,3722.6,0.00284212]
[1641026650385,0.074876,3723.3,3722.3,1.34694495]
[1641026650585,0.074876,3723.3,3722.3,2.01401466]
[1641026650785,0.074876,3723.3,3722.4,0.00397897]
[1641026651384,0.074876,3723.3,3722.7,0.67164]
[1641026651836,0.074876,3723.3,3722.8,0.00170527]
[1641026652234,0.074876,3723.3,3722.6,0.00284212]
[1641026652635,0.074876,3723.3,3722.8,0.67161]
[1641026653035,0.074876,3723.3,3722.9,0.00113685]
[1641026658386,0.074876,3723.3,3722.9,0.67273685]
[1641026658987,0.074876,3723.3,3722.9,0.00113685]
[1641026659266,0.074876,3723.3,3722.6,0.00284212]
[1641026659669,0.074876,3723.3,3722.7,0.67164]
[1641026659873,0.074876,3723.3,3722.6,0.00284212]
[1641026660072,0.074876,3723.3,3722.8,0.00170527]
[1641026660269,0.074876,3723.3,3722.5,1.34239756]
[1641026660270,0.074876,3723.3,3722.6,0.00284212]
[1641026660671,0.67176,3723.2,3722.6,0.00284212]
[1641026661373,2.28816635,3723.3,3722.4,0.00397897]
[1641026661572,0.074876,3723.3,3722.4,0.00397897]
[1641026661771,0.074876,3723.3,3722.4,1.34637653]
[1641026662071,0.074876,3723.3,3722.5,0.00341054]
[1641026662876,2.27438637,3723.3,3722.4,0.00397897]
[1641026663276,2.57438637,3723.3,3722.4,0.00397897]
[1641026663679,0.3,3723.2,3722.4,0.00397897]
[1641026663878,0.67178,3723.0,3722.4,0.00397897]
[1641026664282,0.33405548,3723.2,3722.4,0.00397897]
[1641026664482,0.3,3723.2,3722.2,0.00511581]
[1641026665685,0.67176,3723.1,3722.2,0.00511581]
[1641026668235,2.87967813,3723.1,3722.2,0.00511581]
[1641026668435,0.6718,3722.9,3722.2,0.00511581]
[1641026668835,2.80791813,3723.1,3722.2,0.00511581]
[1641026669034,0.03441408,3723.2,3722.2,0.00511581]
[1641026669240,0.03441408,3723.2,3722.2,0.98417982]
[1641026669438,2.97162136,3723.3,3722.2,0.98417982]
[1641026669638,3.00516305,3723.3,3722.3,0.00454739]
[1641026670241,2.40516305,3723.3,3722.3,0.00454739]
[1641026670479,0.074876,3723.3,3722.3,0.00454739]
[1641026670680,0.746596,3723.3,3722.3,0.00454739]
[1641026671084,0.674876,3723.3,3722.3,0.00454739]
[1641026671288,0.374876,3723.3,3722.3,0.00454739]
[1641026671488,0.70766851,3723.3,3722.3,0.00454739]
[1641026671685,0.374876,3723.3,3722.3,0.00454739]
[1641026671884,0.67175,3723.1,3722.3,0.00454739]
[1641026672787,2.21498747,3723.0,3722.3,0.00454739]
[1641026672985,0.67179,3723.0,3722.3,0.00454739]
[1641026673186,0.3,3723.0,3722.2,0.00511581]
[1641026673585,2.20133055,3723.2,3722.2,0.00511581]
[1641026674233,2.05051934,3723.3,3722.2,0.00511581]
[1641026675333,2.19950319,3723.2,3722.2,0.00511581]
[1641026675533,3.68730593,3723.3,3722.2,0.00511581]
[1641026675731,0.67176,3723.1,3722.2,0.00511581]
[1641026680985,0.67176,3723.1,3722.2,1.34751337]
[1641026681385,0.67176,3723.1,3722.3,0.00454739]
[1641026682031,0.67176,3723.1,3722.3,1.34694495]
[1641026682431,0.67176,3723.1,3722.4,0.00397897]
[1641026682830,0.78509273,3723.3,3722.4,0.00397897]
[1641026683031,0.746606,3723.3,3722.3,0.00454739]
[1641026683429,0.746606,3723.3,3722.3,1.34694495]
[1641026683830,0.746606,3723.3,3722.4,0.00397897]
[1641026684633,0.746606,3723.3,3722.4,0.67566897]
[1641026684634,0.074876,3723.3,3722.4,0.67566897]
[1641026684833,0.074876,3723.3,3722.4,0.67169]
[1641026685034,0.074876,3723.3,3722.5,0.00341054]
[1641026687483,0.074876,3723.3,3722.5,0.67508054]
[1641026687886,0.074876,3723.3,3722.6,0.00284212]
[1641026688489,0.182952,3723.3,3722.6,0.67165]
[1641026688687,0.182952,3723.3,3722.7,2.30207928]
[1641026688885,0.182952,3723.3,3722.7,2.60435298]
[1641026689130,0.182952,3723.3,3722.8,0.00170527]
[1641026689336,0.182952,3723.3,3722.9,1.34239756]
[1641026689337,0.108076,3723.3,3722.9,1.34239756]
[1641026689738,0.108076,3723.3,3722.9,2.01392756]
[1641026690436,0.108076,3723.3,3723.2,0.92950697]
[1641026695895,0.108076,3723.3,3722.9,1.0]
[1641026696734,0.108076,3723.3,3722.8,0.07141911]
[1641026697136,0.108076,3723.3,3722.9,0.00113685]
[1641026698539,0.108077,3723.4,3722.8,0.00170527]
[1641026700589,0.108077,3723.4,3723.0,0.67155]
[1641026701093,0.108077,3723.4,3722.9,1.34239756]
[1641026701489,0.108077,3723.4,3722.9,2.01396756]
[1641026701688,0.108077,3723.4,3722.9,3.31396756]
[1641026701890,0.108077,3723.4,3722.9,5.7284875]
[1641026702089,0.108077,3723.4,3722.9,5.9115875]
[1641026702290,1.8633194,3723.5,3722.9,5.9115875]
[1641026702490,0.03332873,3725.1,3723.1,3.4]
[1641026702789,0.03332873,3725.1,3723.0,15.80811334]
[1641026702790,0.00170527,3723.4,3723.2,3.62817404]
[1641026702994,0.00170527,3723.4,3723.3,3.11092653]
[1641026703194,0.108076,3723.5,3723.3,5.51342409]
[1641026703394,0.108076,3723.5,3723.4,2.24459745]
[1641026703593,0.108076,3723.5,3723.4,3.54459745]
[1641026703791,0.06971374,3724.4,3723.4,3.54459745]
[1641026704243,0.00682108,3724.3,3724.1,0.67116]
[1641026704440,0.00682108,3724.3,3724.2,2.41183518]
[1641026704640,0.06971374,3724.4,3724.2,18.44183518]
[1641026704838,0.06971374,3724.4,3724.3,3.32254765]
[1641026705040,0.06971374,3724.4,3724.3,4.32254765]
[1641026705239,0.07710324,3724.4,3724.3,4.32254765]
[1641026705439,0.0073895,3724.4,3724.3,4.32254765]
[1641026709496,0.0073895,3724.4,3724.3,4.37303183]
[1641026712239,0.0073895,3724.4,3724.3,0.05048418]
[1641026728056,4.45,3724.3,3723.2,3.84191212]
[1641026728258,2.26178608,3724.2,3723.2,3.84191212]
[1641026728455,2.26178608,3724.2,3722.6,1.34239756]
[1641026728456,3.56803874,3724.2,3722.6,1.34239756]
[1641026728659,0.00568423,3724.1,3722.6,1.34239756]
[1641026728859,0.00568423,3724.1,3722.7,0.0022737]
[1641026729057,3.56178608,3724.2,3722.7,0.0022737]
[1641026729058,0.94367406,3723.4,3722.7,0.0022737]
[1641026729262,2.22852452,3723.3,3722.7,0.0022737]
[1641026729460,2.22966137,3723.3,3722.7,0.0022737]
[1641026730803,0.00113685,3723.3,3722.7,0.0022737]
[1641026731205,0.00113685,3723.3,3722.8,0.67156]
[1641026731405,0.01289851,3724.4,3724.1,0.59821517]
[1641026731605,0.09522849,3724.5,3724.3,33.26783551]
[1641026731806,0.09522849,3724.5,3724.3,34.70628209]
[1641026732005,0.09522849,3724.5,3724.3,35.07219952]
[1641026732205,0.09522849,3724.5,3724.4,1.0]
[1641026732611,0.10204957,3724.5,3724.4,1.0]
[1641026732813,0.10204957,3724.5,3724.4,4.84191212]
[1641026733512,2.80204957,3724.5,3724.4,4.84191212]
[1641026733911,2.80204957,3724.5,3724.4,3.84191212]
[1641026735062,2.80204957,3724.5,3724.3,1.35287732]
[1641026735365,0.00625265,3724.4,3724.3,1.35287732]
[1641026735864,0.00625265,3724.4,3724.2,2.35287732]
[1641026736263,0.00568423,3724.3,3724.2,2.35287732]
[1641026737062,0.00568423,3724.3,3724.2,1.35287732]
[1641026737268,0.00568423,3724.3,3724.2,2.35287732]
[1641026737665,0.00568423,3724.3,3724.2,1.35287732]
[1641026738104,4.52826109,3726.6,3724.5,3.12865914]
[1641026738306,4.52826109,3726.6,3725.5,0.68374065]
[1641026738800,4.52826109,3726.6,3725.5,0.31271065]
[1641026739001,0.90861312,3726.5,3725.7,0.97922093]
[1641026739404,0.01193689,3726.4,3725.7,1.27922093]
[1641026739906,0.90861312,3726.5,3726.0,0.67095]
[1641026739907,0.01136847,3726.3,3726.0,0.67095]
[1641026740303,0.01080005,3726.2,3726.0,0.67095]
[1641026740707,0.01023162,3726.1,3726.0,0.67095]
[1641026741106,0.01307374,3726.1,3726.0,0.67095]
[1641026742643,0.01307374,3726.1,3726.0,0.97095]
[1641026743145,0.01307374,3726.1,3726.0,0.67095]
[1641026743342,0.01307374,3726.1,3725.9,1.34177]
[1641026743542,0.01307374,3726.1,3725.9,1.64177]
[1641026743742,0.0096632,3726.0,3725.9,1.64177]
[1641026745147,0.0096632,3726.0,3725.9,19.88574002]
[1641026745594,0.0096632,3726.0,3725.9,18.58869972]
[1641026746097,0.0096632,3726.0,3725.9,19.46393439]
[1641026748199,0.0096632,3726.0,3725.9,3.73393439]
[1641026748402,0.0096632,3726.0,3725.9,21.99961696]
[1641026748599,0.0096632,3726.0,3725.9,6.26961696]
[1641026748803,0.108077,3726.7,3726.0,4.85]
[1641026749000,0.108077,3726.7,3726.4,0.97074]
[1641026749252,0.108077,3726.7,3726.5,2.40397655]
[1641026749253,0.00341054,3726.6,3726.5,2.40397655]
[1641026749450,0.00341054,3726.6,3726.5,18.13397655]
[1641026749648,0.00341054,3726.6,3726.5,19.43397655]
[1641026749849,0.00341054,3726.6,3726.5,20.2168236]
[1641026751453,0.00341054,3726.6,3726.5,17.81284705]
[1641026752052,0.00341054,3726.6,3726.5,2.08284705]
[1641026752352,0.00341054,3726.6,3726.5,1.78284705]
[1641026752554,0.00341054,3726.6,3726.5,0.78284705]
[1641026752754,0.06148754,3726.7,3726.5,0.78284705]
[1641026753205,0.06148754,3726.7,3726.4,1.97074]
[1641026753407,0.06148754,3726.7,3726.4,0.67074]
[1641026754211,0.06148754,3726.7,3726.4,1.46619224]
[1641026754411,0.06148754,3726.7,3726.5,0.06591743]
[1641026754612,0.06148754,3726.7,3726.5,0.36591743]
[1641026755012,0.06148754,3726.7,3726.5,1.36591743]
[1641026755212,0.06148754,3726.7,3726.5,1.6]
[1641026756013,0.06148754,3726.7,3726.5,1.0]
[1641026756412,0.06148754,3726.7,3726.4,1.97074]
[1641026759349,0.06148754,3726.7,3726.4,1.67074]
[1641026759550,0.06148754,3726.7,3726.4,1.97074]
[1641026759950,0.06148754,3726.7,3726.4,0.97074]
[1641026760150,0.06148754,3726.7,3726.4,1.97074]
[1641026760396,0.06148754,3726.7,3726.4,2.27074]
[1641026761798,0.06148754,3726.7,3726.4,4.50292288]
[1641026761998,0.06148754,3726.7,3726.4,2.27074]
[1641026762805,0.06148754,3726.7,3726.4,3.62361732]
[1641026763203,0.06148754,3726.7,3726.4,2.27074]
[1641026765944,1.25,3726.5,3726.4,2.27074]
[1641026766345,1.25,3726.5,3726.4,2.27187685]
[1641026768298,1.25,3726.5,3726.4,4.47738056]
[1641026768699,1.25,3726.5,3726.4,2.27187685]
[1641026769705,1.25,3726.5,3726.4,4.4939798]
[1641026769908,4.51650915,3728.6,3727.9,7.03811833]
[1641026770118,6.15529141,3730.2,3727.9,7.03811833]
[1641026770119,9.0514578,3730.3,3729.5,0.14033377]
[1641026770310,9.0514578,3730.3,3729.6,0.13819997]
[1641026770511,9.0514578,3730.3,3730.1,0.01277674]
[1641026770907,9.83858153,3730.3,3729.7,15.73]
[1641026771112,8.57905755,3730.3,3729.7,15.73]
[1641026771311,8.57905755,3730.3,3729.8,0.67016]
[1641026771508,2.29240918,3731.2,3730.2,15.73]
[1641026771742,0.07045905,3731.4,3730.7,0.67014]
[1641026771944,0.02614748,3731.2,3730.7,0.67014]
[1641026772350,0.02557906,3731.1,3730.9,1.34006]
[1641026772543,0.02557906,3731.1,3730.9,0.3]
[1641026772739,0.02501063,3731.0,3730.9,0.3]
[1641026772942,0.02501063,3731.0,3730.4,0.3]
[1641026773242,0.02444221,3730.9,3730.4,0.293]
[1641026773443,0.02444221,3730.9,3730.8,1.34008]
[1641026773641,0.94992424,3731.4,3730.8,1.34008]
[1641026773843,0.94992424,3731.4,3730.8,1.64008]
[1641026774041,0.0267159,3731.3,3730.8,1.64008]
[1641026774250,0.0267159,3731.3,3731.1,0.67008]
[1641026774452,0.02614748,3731.2,3731.1,0.67008]
[1641026774652,0.02614748,3731.2,3730.8,1.34008]
[1641026775050,0.02557906,3731.1,3730.8,1.34008]
[1641026775495,0.94992424,3731.4,3730.8,1.64008]
[1641026775496,0.02501063,3731.0,3730.8,1.64008]
[1641026775696,0.02501063,3731.0,3730.8,1.94008]
[1641026775898,0.94992424,3731.4,3730.9,1.3401]
[1641026776097,0.94992424,3731.4,3730.9,2.3401]
[1641026776299,0.0267159,3731.3,3730.9,2.3401]
[1641026776498,0.0267159,3731.3,3730.9,2.9401]
[1641026776702,0.02614748,3731.2,3731.0,1.0]
[1641026777100,0.02557906,3731.1,3730.9,1.3401]
[1641026777498,0.83811686,3731.4,3730.9,1.3401]
[1641026777899,0.00113684,3731.3,3730.9,1.3401]
[1641026778100,0.00113684,3731.3,3730.9,1.6401]
[1641026778501,0.00113684,3731.3,3731.1,0.67004]
[1641026779842,0.00138212,3731.2,3731.1,0.67004]
[1641026782045,0.00138212,3731.2,3731.1,0.97004]
[1641026783706,0.00138212,3731.2,3731.1,2.77387643]
[1641026784106,0.00138212,3731.2,3731.1,3.77387643]
[1641026784309,0.98688895,3731.5,3731.1,6.9126614]
[1641026784508,0.98688895,3731.5,3731.1,7.91379825]
[1641026784714,0.98688895,3731.5,3731.1,6.91379825]
[1641026784909,0.98688895,3731.5,3731.2,1.0]
[1641026785309,0.95700152,3732.2,3731.8,0.9022963]
[1641026785711,0.91716994,3732.0,3731.8,0.9022963]
[1641026786111,0.91716994,3732.0,3731.8,0.90597007]
[1641026787151,2.11687228,3731.9,3731.8,0.90597007]
[1641026787354,2.11687228,3731.9,3731.8,0.28479658]
[1641026787553,0.6,3731.9,3731.8,0.28479658]
[1641026789153,0.6,3731.9,3731.0,3.77647821]
[1641026789154,4.85,3731.8,3731.0,3.77647821]